fUST/lending_fUST_20241225
["ID","MTS","AMOUNT","RATE_DAILY","PERIOD"]
[346556257,1735083051083,-595.09397213,0.00013972,2]
[346556258,1735083051092,-500.0,0.00013972,2]
[346556259,1735083051101,-500.0,0.00013972,2]
[346556260,1735083051111,-500.0,0.00013972,2]
[346556261,1735083051120,-1109.62,0.00013972,2]
[346556262,1735083051129,-500.0,0.00013972,2]
[346556263,1735083051139,-500.0,0.00013972,2]
[346556264,1735083051148,-500.0,0.00013972,2]
[346556265,1735083051157,-500.0,0.00013972,2]
[346556266,1735083051171,-500.0,0.00013972,2]
[346556267,1735083051180,-500.0,0.00013972,2]
[346556268,1735083051189,-296.51156252,0.00013972,2]
[346556269,1735083051199,-1647.88,0.00013972,2]
[346556270,1735083051209,-500.0,0.00013972,2]
[346556271,1735083051219,-674.94,0.00013972,2]
[346556272,1735083051228,-846.01,0.00013972,2]
[346556273,1735083051239,-500.0,0.00013972,2]
[346556274,1735083051248,-500.0,0.00013972,2]
[346556275,1735083051258,-1029.9,0.00013972,2]
[346556276,1735083051267,-500.0,0.00013972,2]
[346556277,1735083051276,-500.0,0.00013972,2]
[346556278,1735083051285,-500.0,0.00013972,2]
[346556279,1735083051295,-500.0,0.00013972,2]
[346556280,1735083051306,-500.0,0.00013972,2]
[346556281,1735083051315,-500.0,0.00013972,2]
[346556282,1735083051326,-500.0,0.00013972,2]
[346556283,1735083051335,-1166.04,0.00013972,2]
[346556284,1735083051344,-500.0,0.00013972,2]
[346556285,1735083051353,-500.0,0.00013972,2]
[346556286,1735083051363,-1081.59,0.00013972,2]
[346556287,1735083051372,-500.0,0.00013972,2]
[346556288,1735083051380,-500.0,0.00013972,2]
[346556289,1735083051389,-151.0,0.00013972,2]
[346556290,1735083051398,-500.0,0.00013972,2]
[346556291,1735083051407,-151.0,0.00013972,2]
[346556292,1735083051417,-151.369716,0.00013972,2]
[346556293,1735083051426,-635.04,0.00013972,2]
[346556294,1735083051435,-500.0,0.00013972,2]
[346556295,1735083051444,-500.0,0.00013972,2]
[346556296,1735083051453,-600.87,0.00013972,2]
[346556297,1735083051462,-500.0,0.00013972,2]
[346556298,1735083051471,-429.4195039,0.00013972,2]
[346556299,1735083051480,-530.46,0.00013972,2]
[346556300,1735083051489,-2322.63,0.00013972,2]
[346556301,1735083051499,-500.0,0.00013972,2]
[346556302,1735083051508,-500.0,0.00013972,2]
[346556303,1735083051517,-819.01,0.00013972,2]
[346556304,1735083051526,-500.0,0.00013972,2]
[346556305,1735083051535,-500.0,0.00013972,2]
[346556306,1735083051544,-1233.43,0.00013972,2]
[346556307,1735083051553,-500.0,0.00013972,2]
[346556308,1735083051563,-500.0,0.00013972,2]
[346556309,1735083051572,-500.0,0.00013972,2]
[346556310,1735083051582,-500.0,0.00013972,2]
[346556311,1735083051592,-500.0,0.00013972,2]
[346556312,1735083051602,-500.0,0.00013972,2]
[346556313,1735083051612,-553.67,0.00013972,2]
[346556314,1735083051622,-594.86,0.00013972,2]
[346556315,1735083051632,-631.07,0.00013972,2]
[346556316,1735083051642,-537.92,0.00013972,2]
[346556317,1735083051652,-500.0,0.00013972,2]
[346556318,1735083051661,-500.0,0.00013972,2]
[346556319,1735083051671,-2218.99,0.00013972,2]
[346556320,1735083051680,-1244.8,0.00013972,2]
[346556321,1735083051690,-500.0,0.00013972,2]
[346556322,1735083051699,-500.0,0.00013972,2]
[346556323,1735083051708,-500.0,0.00013972,2]
[346556324,1735083051718,-560.81,0.00013972,2]
[346556325,1735083051727,-800.44,0.00013972,2]
[346556326,1735083051737,-500.0,0.00013972,2]
[346556327,1735083051747,-766.74,0.00013972,2]
[346556328,1735083051756,-500.0,0.00013972,2]
[346556329,1735083051765,-523.14947342,0.00013972,2]
[346556330,1735083051775,-500.0,0.00013972,2]
[346556331,1735083051784,-500.0,0.00013972,2]
[346556332,1735083051793,-500.0,0.00013972,2]
[346556333,1735083051805,-500.0,0.00013972,2]
[346556334,1735083051816,-500.0,0.00013972,2]
[346556335,1735083051826,-550.96,0.00013972,2]
[346556336,1735083051835,-500.0,0.00013972,2]
[346556337,1735083051845,-162.34112486,0.00013972,2]
[346556338,1735083051854,-500.0,0.00013972,2]
[346556339,1735083051863,-355.20382433,0.00013972,2]
[346556340,1735083051873,-500.0,0.00013972,2]
[346556341,1735083051882,-500.0,0.00013972,2]
[346556342,1735083051892,-500.0,0.00013972,2]
[346556343,1735083051902,-500.0,0.00013972,2]
[346556344,1735083051911,-1887.02,0.00013972,2]
[346556345,1735083051921,-500.0,0.00013972,2]
[346556346,1735083051931,-1475.98,0.00013972,2]
[346556347,1735083051940,-500.0,0.00013972,2]
[346556348,1735083051950,-500.0,0.00013972,2]
[346556349,1735083051959,-500.0,0.00013972,2]
[346556350,1735083051968,-500.0,0.00013972,2]
[346556351,1735083051977,-500.0,0.00013972,2]
[346556352,1735083051987,-1010.39,0.00013972,2]
[346556353,1735083051996,-500.0,0.00013972,2]
[346556354,1735083052006,-1257.46,0.00013972,2]
[346556355,1735083052015,-500.0,0.00013972,2]
[346556356,1735083052025,-893.4,0.00013972,4]
[346556357,1735083052034,-693.98,0.00013972,2]
[346556358,1735083052044,-151.0,0.00013972,2]
[346556359,1735083052054,-151.0,0.00013972,2]
[346556360,1735083052063,-2974.44,0.00013972,2]
[346556361,1735083052072,-559.35,0.00013972,2]
[346556362,1735083052082,-500.0,0.00013972,2]
[346556363,1735083052092,-500.0,0.00013972,2]
[346556364,1735083052101,-500.0,0.00013972,2]
[346556365,1735083052111,-505.25555965,0.00013972,2]
[346556366,1735083052121,-500.0,0.00013972,2]
[346556367,1735083052131,-500.0,0.00013972,2]
[346556368,1735083052140,-803.1,0.00013972,2]
[346556369,1735083052150,-768.93,0.00013972,2]
[346556370,1735083052159,-500.0,0.00013972,2]
[346556371,1735083052169,-598.5,0.00013972,2]
[346556372,1735083052184,-500.0,0.00013972,2]
[346556373,1735083052193,-151.0,0.00013972,2]
[346556374,1735083052203,-500.0,0.00013972,2]
[346556375,1735083052212,-1932.27,0.00013972,2]
[346556376,1735083052222,-500.0,0.00013972,2]
[346556377,1735083052231,-500.0,0.00013972,2]
[346556378,1735083052241,-1244.01,0.00013972,2]
[346556379,1735083052251,-4415.47,0.00013972,2]
[346556380,1735083052261,-500.0,0.00013972,2]
[346556381,1735083052270,-500.0,0.00013972,2]
[346556382,1735083052279,-808.3,0.00013972,2]
[346556383,1735083052411,-500.0,0.00013972,2]
[346556384,1735083052420,-751.47,0.00013972,2]
[346556385,1735083052429,-1189.72,0.00013972,2]
[346556386,1735083052438,-3267.97,0.00013972,2]
[346556387,1735083052448,-500.0,0.00013972,2]
[346556388,1735083052457,-500.0,0.00013972,2]
[346556389,1735083052466,-500.0,0.00013972,2]
[346556390,1735083052476,-500.0,0.00013972,2]
[346556391,1735083052486,-500.0,0.00013972,2]
[346556392,1735083052496,-500.0,0.00013972,2]
[346556393,1735083052505,-500.0,0.00013972,2]
[346556394,1735083052514,-2504.24,0.00013972,2]
[346556395,1735083052524,-982.91,0.00013972,2]
[346556396,1735083052534,-3067.96,0.00013972,2]
[346556397,1735083052543,-998.64757715,0.00013972,2]
[346556398,1735083052566,-534.0,0.00013949,2]
[346556399,1735083052578,-40.47949418,0.00013972,2]
[346556400,1735083052590,-428.32949418,0.00013972,2]
[346556401,1735083052601,-84.34343449,0.00013972,2]
[346556402,1735083052611,-630.68103371,0.00013972,2]
[346556403,1735083052620,-506.41,0.00013972,2]
[346556404,1735083052629,-3942.1,0.00013972,2]
[346556405,1735083052638,-500.0,0.00013972,2]
[346556406,1735083052647,-208.41443233,0.00013972,2]
[346556407,1735083164810,2000.0,0.00018602,30]
[346556408,1735083165127,2000.0,0.00018602,30]
[346556409,1735083266387,500.0,0.00018602,120]
[346556410,1735083323671,713.0,0.00017,60]
[346556412,1735084026116,-1015.0664817,0.00011911,2]
[346556413,1735084026139,-1015.0664817,0.00012031,2]
[346556414,1735084026160,-168.7665701,0.00012081,2]
[346556415,1735084026182,-168.7665701,0.00012203,2]
[346556416,1735084026203,-1428.1650157,0.00012461,2]
[346556417,1735084026225,-300.0,0.00012741,2]
[346556418,1735084026247,-300.0,0.00012741,2]
[346556419,1735084026270,-3165.02830385,0.00012742,2]
[346556420,1735084048089,-324.64532577,0.00012488,2]
[346556421,1735084048110,-324.64532577,0.00012614,2]
[346556422,1735084048132,-21734.97169615,0.00012742,2]
[346556423,1735084048155,-397.542,0.0001327,2]
[346556424,1735084048176,-583.66687873,0.00013567,2]
[346556432,1735084232539,-1000.0,0.00013388,2]
[346556433,1735084232548,-467.1891902,0.00013431,2]
[346556434,1735084232557,-300.0,0.00013597,2]
[346556435,1735084232567,-300.0,0.00013597,2]
[346556436,1735084232576,-3245.93676605,0.00013598,2]
[346556499,1735084238969,-2596.1634696,0.00013598,2]
[346556516,1735084240559,-679.05085457,0.00013598,2]
[346556522,1735084240657,-1294.73523842,0.00013598,2]
[346556523,1735084240670,-360.89015631,0.00013598,2]
[346556525,1735084243714,-3695.07360481,0.00013462,2]
[346556527,1735084243725,-140.36400109,0.00013462,2]
[346556529,1735084243735,-742.07498257,0.00013598,2]
[346556532,1735084243747,-3903.0,0.00013598,2]
[346556556,1735084246582,-827.53736369,0.00013598,2]
[346556557,1735084246591,-12.55812777,0.00013653,2]
[346556560,1735084246618,-981.07247843,0.00013653,2]
[346556562,1735084246629,-6.3693938,0.00013653,2]
[346556563,1735084246638,-331.21743532,0.00013673,2]
[346556565,1735084246649,-168.78256468,0.00013673,2]
[346556567,1735084246658,-500.0,0.00013673,2]
[346556569,1735084246667,-1000.0,0.00013679,2]
[346556570,1735084246677,-1002.55704866,0.00013697,2]
[346556572,1735084246686,-500.0,0.00013697,2]
[346556574,1735084246695,-500.0,0.00013697,2]
[346556575,1735084246705,-414.7628653,0.00013697,2]
[346556577,1735084246714,-500.0,0.00013697,2]
[346556578,1735084246723,-391.56589781,0.00013697,2]
[346556579,1735084246733,-500.0,0.00013697,2]
[346556580,1735084246742,-500.0,0.00013697,2]
[346556581,1735084246751,-500.0,0.00013697,2]
[346556582,1735084246761,-398.1446561,0.00013697,2]
[346556583,1735084246772,-1566.42,0.00013698,2]
[346556584,1735084246781,-502.4733482,0.00013698,2]
[346556585,1735084246793,-148.3310665,0.00013698,2]
[346556691,1735084396933,3000.0,0.000148,30]
[346556692,1735084397205,3000.0,0.0001481,30]
[346556693,1735084397492,3000.0,0.0001482,30]
[346556694,1735084397826,3000.0,0.0001483,30]
[346556695,1735084398211,3000.0,0.0001484,30]
[346556696,1735084398495,3000.0,0.0001485,30]
[346556697,1735084398849,3000.0,0.0001486,30]
[346556698,1735084399164,3000.0,0.0001487,30]
[346556699,1735084399598,3000.0,0.0001488,30]
[346556700,1735084399986,3000.0,0.0001489,30]
[346556701,1735084400418,3000.0,0.000149,30]
[346556702,1735084400744,3000.0,0.0001491,30]
[346556703,1735084401088,3000.0,0.0001492,30]
[346556704,1735084410913,3000.0,0.0001493,30]
[346556705,1735084411400,3446.424348,0.0001494,30]
[346556707,1735084517147,34546.66979,0.00023,120]
[346556708,1735084572244,40686.55084,0.00023,120]
[346556710,1735085076120,500.0,0.00018675,120]
[346556711,1735085131974,160.0,0.0001964,120]
[346556712,1735085363616,2178.15293248,0.0001494,30]
[346556772,1735085432582,-300.0,0.00012663,2]
[346556774,1735085432592,-300.0,0.00012663,2]
[346556776,1735085432601,-18.6632773,0.00012664,2]
[346556778,1735085432613,-2911.47624495,0.00012664,2]
[346556781,1735085432628,-502.38622156,0.00012664,2]
[346556785,1735085432665,-16361.12210079,0.00012664,2]
[346556788,1735085432676,-381.235,0.0001327,2]
[346556790,1735085432685,-3477.64289921,0.00013479,2]
[346556792,1735085432696,-268.209553,0.00013479,2]
[346556794,1735085432710,-499.563478,0.00013479,2]
[346556796,1735085432722,-1212.66968325,0.00013479,2]
[346556798,1735085432731,-1083.97437852,0.00013498,2]
[346556800,1735085432741,-6388.27542869,0.00013598,2]
[346556896,1735085440515,-759.32297636,0.00013598,2]
[346556897,1735085440525,-623.17702364,0.00013598,2]
[346556898,1735085440570,-42.82297636,0.00013598,2]
[346556899,1735085440579,-500.0,0.00013673,2]
[346556900,1735085440588,-500.0,0.00013673,2]
[346556901,1735085440598,-500.0,0.00013673,2]
[346556902,1735085440607,-500.0,0.00013673,2]
[346556903,1735085440616,-500.0,0.00013673,2]
[346556904,1735085440625,-500.0,0.00013673,2]
[346556906,1735085440634,-202.22357695,0.00013673,2]
[346556908,1735085440645,-500.0,0.00013673,2]
[346556909,1735085440655,-500.0,0.00013673,2]
[346556910,1735085440664,-501.59897304,0.00013673,2]
[346556911,1735085440673,-152.0,0.00013674,2]
[346556912,1735085440682,-5797.32918445,0.0001369,2]
[346556913,1735085440692,-500.0,0.00013697,2]
[346556914,1735085440701,-500.0,0.00013697,2]
[346556915,1735085440710,-500.0,0.00013697,2]
[346556916,1735085440720,-500.0,0.00013697,2]
[346556917,1735085440728,-500.0,0.00013697,2]
[346556918,1735085440740,-384.8312,0.00013697,2]
[346556919,1735085440748,-7271.00723711,0.00013698,2]
[346556920,1735085440758,-151.0,0.00013698,2]
[346556921,1735085440768,-151.0,0.00013698,2]
[346556922,1735085440778,-6602.84422152,0.00013698,2]
[346556923,1735085440787,-151.0,0.00013698,2]
[346556924,1735085440796,-151.0,0.00013698,2]
[346556925,1735085440806,-151.0,0.00013698,2]
[346556926,1735085440816,-182.415833,0.00013698,2]
[346556927,1735085440825,-151.0,0.00013698,2]
[346556928,1735085440835,-155.601224,0.00013698,2]
[346556929,1735085440845,-151.0,0.00013698,2]
[346556930,1735085440855,-151.0,0.00013698,2]
[346556931,1735085440864,-151.0,0.00013698,2]
[346556932,1735085440874,-151.0,0.00013698,2]
[346556933,1735085440883,-152.337546,0.00013698,2]
[346556934,1735085440892,-151.0,0.00013698,2]
[346556935,1735085440903,-236.38929,0.00013698,2]
[346556936,1735085440912,-199.25476,0.00013698,2]
[346556937,1735085440922,-199.25476,0.00013698,2]
[346556938,1735085440932,-199.25476,0.00013698,2]
[346556939,1735085440941,-199.25476,0.00013698,2]
[346556940,1735085440950,-199.25476,0.00013698,2]
[346556941,1735085440960,-199.25476,0.00013698,2]
[346556942,1735085440970,-199.25476,0.00013698,2]
[346556943,1735085440979,-199.25476,0.00013698,2]
[346556944,1735085440989,-260.886698,0.00013698,2]
[346556945,1735085440999,-260.886698,0.00013698,2]
[346556946,1735085441008,-260.886698,0.00013698,2]
[346556947,1735085441017,-260.886698,0.00013698,2]
[346556948,1735085441027,-260.886698,0.00013698,2]
[346556949,1735085441036,-260.886698,0.00013698,2]
[346556950,1735085441045,-260.886698,0.00013698,2]
[346556951,1735085441054,-260.886698,0.00013698,2]
[346556952,1735085441064,-151.0,0.00013698,2]
[346556953,1735085441073,-151.0,0.00013698,2]
[346556954,1735085441083,-151.0,0.00013698,2]
[346556955,1735085441092,-151.0,0.00013698,2]
[346556956,1735085441102,-268.068388,0.00013698,2]
[346556957,1735085441112,-352.16212112,0.00013698,2]
[346556958,1735085441121,-610.49439258,0.00013698,2]
[346556959,1735085441131,-501.50833372,0.00013698,2]
[346556960,1735085441141,-500.0,0.00013698,2]
[346556961,1735085441150,-500.0,0.00013698,2]
[346556962,1735085441160,-500.0,0.00013698,2]
[346556963,1735085441169,-500.0,0.00013698,2]
[346556964,1735085441178,-500.0,0.00013698,2]
[346556965,1735085441188,-151.0,0.00013698,2]
[346556966,1735085441197,-151.0,0.00013698,2]
[346556967,1735085441206,-151.0,0.00013698,2]
[346556968,1735085441216,-151.0,0.00013698,2]
[346556969,1735085441225,-158.281967,0.00013698,2]
[346556970,1735085441235,-500.0,0.00013698,2]
[346556971,1735085441245,-500.0,0.00013698,2]
[346556972,1735085441254,-500.0,0.00013698,2]
[346556973,1735085441263,-207.28235946,0.00013698,2]
[346556974,1735085441273,-907.12,0.00013698,2]
[346556975,1735085441282,-501.8512209,0.00013698,2]
[346556976,1735085441292,-500.0,0.00013698,2]
[346556977,1735085441302,-151.0,0.00013698,2]
[346556978,1735085441311,-500.0,0.00013698,2]
[346556979,1735085441320,-151.0,0.00013698,2]
[346556980,1735085441331,-151.0,0.00013698,2]
[346556981,1735085441342,-151.0,0.00013698,2]
[346556982,1735085441351,-500.0,0.00013698,2]
[346556983,1735085441361,-151.0,0.00013698,2]
[346556984,1735085441371,-500.0,0.00013698,2]
[346556985,1735085441382,-500.0,0.00013698,2]
[346556986,1735085441392,-500.0,0.00013698,2]
[346556987,1735085441402,-266.378923,0.00013698,2]
[346556988,1735085441412,-501.08736066,0.00013698,2]
[346556989,1735085441422,-500.0,0.00013698,2]
[346556990,1735085441431,-759.62,0.00013698,2]
[346556991,1735085441441,-610.42471469,0.00013698,2]
[346556992,1735085441450,-500.0,0.00013698,2]
[346556993,1735085441460,-500.0,0.00013698,2]
[346556994,1735085441469,-500.0,0.00013698,2]
[346556995,1735085441478,-500.0,0.00013698,2]
[346556996,1735085441488,-500.0,0.00013698,2]
[346556997,1735085441497,-500.0,0.00013698,2]
[346556998,1735085441507,-500.0,0.00013698,2]
[346556999,1735085441517,-491.51278085,0.00013698,2]
[346557000,1735085441528,-500.0,0.00013698,2]
[346557001,1735085441538,-502.54835622,0.00013698,2]
[346557002,1735085441547,-640.98816472,0.00013698,2]
[346557003,1735085441556,-500.0,0.00013698,2]
[346557004,1735085441566,-500.0,0.00013698,2]
[346557005,1735085441575,-303.21006161,0.00013698,2]
[346557006,1735085441585,-532.56858454,0.00013698,2]
[346557007,1735085441595,-500.0,0.00013698,2]
[346557008,1735085441604,-500.0,0.00013698,2]
[346557009,1735085441614,-500.0,0.00013698,2]
[346557010,1735085441623,-500.0,0.00013698,2]
[346557011,1735085441635,-500.0,0.00013698,2]
[346557012,1735085441645,-500.0,0.00013698,2]
[346557013,1735085441654,-500.0,0.00013698,2]
[346557014,1735085441664,-875.9,0.00013698,2]
[346557015,1735085441673,-500.0,0.00013698,2]
[346557016,1735085441684,-500.0,0.00013698,2]
[346557017,1735085441693,-500.0,0.00013698,2]
[346557018,1735085441703,-501.02143821,0.00013698,2]
[346557019,1735085441712,-500.0,0.00013698,2]
[346557020,1735085441721,-234.12,0.00013698,2]
[346557021,1735085441731,-201.068847,0.00013698,2]
[346557022,1735085441742,-543.36583872,0.00013698,2]
[346557023,1735085441752,-575.348965,0.00013698,2]
[346557024,1735085441761,-201.068847,0.00013698,2]
[346557025,1735085441771,-575.348965,0.00013698,2]
[346557026,1735085441780,-575.348965,0.00013698,2]
[346557027,1735085441789,-201.068847,0.00013698,2]
[346557028,1735085441799,-575.348965,0.00013698,2]
[346557029,1735085441808,-201.068847,0.00013698,2]
[346557030,1735085441817,-575.348965,0.00013698,2]
[346557031,1735085441826,-201.068847,0.00013698,2]
[346557032,1735085441835,-503.07177438,0.00013698,2]
[346557033,1735085441845,-551.43,0.00013698,2]
[346557034,1735085441855,-501.81703898,0.00013698,2]
[346557035,1735085441864,-575.348965,0.00013698,2]
[346557036,1735085441874,-575.348965,0.00013698,2]
[346557037,1735085441884,-501.21154924,0.00013698,2]
[346557038,1735085441894,-575.348965,0.00013698,2]
[346557039,1735085441904,-201.068847,0.00013698,2]
[346557040,1735085441914,-575.348965,0.00013698,2]
[346557041,1735085441923,-201.068847,0.00013698,2]
[346557042,1735085441933,-575.348965,0.00013698,2]
[346557043,1735085441942,-201.068847,0.00013698,2]
[346557044,1735085441952,-201.068847,0.00013698,2]
[346557045,1735085441962,-201.068847,0.00013698,2]
[346557046,1735085441971,-500.0,0.00013698,2]
[346557047,1735085441980,-502.25560614,0.00013698,2]
[346557048,1735085441989,-500.0,0.00013698,2]
[346557049,1735085441998,-500.0,0.00013698,2]
[346557050,1735085442007,-500.0,0.00013698,2]
[346557051,1735085442016,-500.0,0.00013698,2]
[346557052,1735085442026,-500.0,0.00013698,2]
[346557053,1735085442035,-500.0,0.00013698,2]
[346557054,1735085442044,-500.0,0.00013698,2]
[346557055,1735085442054,-151.0,0.00013698,2]
[346557056,1735085442063,-500.0,0.00013698,2]
[346557057,1735085442072,-151.0,0.00013698,2]
[346557058,1735085442081,-500.0,0.00013698,2]
[346557059,1735085442091,-500.0,0.00013698,2]
[346557060,1735085442100,-500.0,0.00013698,2]
[346557061,1735085442110,-500.0,0.00013698,2]
[346557062,1735085442119,-500.0,0.00013698,2]
[346557063,1735085442130,-500.0,0.00013698,2]
[346557064,1735085442140,-500.86246957,0.00013698,2]
[346557065,1735085442149,-500.0,0.00013698,2]
[346557066,1735085442158,-500.0,0.00013698,2]
[346557067,1735085442168,-441.69494703,0.00013698,2]
[346557068,1735085442177,-500.0,0.00013698,2]
[346557069,1735085442187,-500.0,0.00013698,2]
[346557070,1735085442197,-500.0,0.00013698,2]
[346557071,1735085442206,-500.0,0.00013698,2]
[346557072,1735085442216,-500.0,0.00013698,2]
[346557073,1735085442225,-500.0,0.00013698,2]
[346557074,1735085442235,-500.0,0.00013698,2]
[346557075,1735085442244,-500.0,0.00013698,2]
[346557076,1735085442254,-500.0,0.00013698,2]
[346557077,1735085442263,-500.0,0.00013698,2]
[346557078,1735085442272,-502.21022749,0.00013698,2]
[346557079,1735085442282,-500.0,0.00013698,2]
[346557080,1735085442291,-500.0,0.00013698,2]
[346557081,1735085442301,-500.0,0.00013698,2]
[346557082,1735085442311,-500.0,0.00013698,2]
[346557083,1735085442320,-500.0,0.00013698,2]
[346557084,1735085442330,-674.41,0.00013698,2]
[346557085,1735085442341,-500.0,0.00013698,2]
[346557086,1735085442351,-500.0,0.00013698,2]
[346557087,1735085442360,-500.0,0.00013698,2]
[346557088,1735085442369,-500.0,0.00013698,2]
[346557089,1735085442380,-151.39949,0.00013698,2]
[346557090,1735085442389,-500.0,0.00013698,2]
[346557091,1735085442398,-151.0,0.00013698,2]
[346557092,1735085442409,-151.0,0.00013698,2]
[346557093,1735085442418,-151.0,0.00013698,2]
[346557094,1735085442427,-151.0,0.00013698,2]
[346557095,1735085442436,-151.0,0.00013698,2]
[346557096,1735085442445,-151.0,0.00013698,2]
[346557097,1735085442454,-500.0,0.00013698,2]
[346557098,1735085442464,-151.0,0.00013698,2]
[346557099,1735085442473,-500.0,0.00013698,2]
[346557100,1735085442482,-151.0,0.00013698,2]
[346557101,1735085442491,-151.0,0.00013698,2]
[346557102,1735085442500,-500.0,0.00013698,2]
[346557103,1735085442509,-151.0,0.00013698,2]
[346557104,1735085442518,-151.0,0.00013698,2]
[346557105,1735085442528,-500.0,0.00013698,2]
[346557106,1735085442537,-500.0,0.00013698,2]
[346557107,1735085442547,-602.59,0.00013698,2]
[346557108,1735085442556,-500.0,0.00013698,2]
[346557109,1735085442565,-500.0,0.00013698,2]
[346557110,1735085442574,-500.0,0.00013698,2]
[346557111,1735085442583,-500.0,0.00013698,2]
[346557112,1735085442592,-500.0,0.00013698,2]
[346557113,1735085442603,-500.0,0.00013698,2]
[346557114,1735085442612,-500.0,0.00013698,2]
[346557115,1735085442621,-954.25,0.00013698,2]
[346557116,1735085442631,-500.0,0.00013698,2]
[346557117,1735085442640,-501.65349514,0.00013698,2]
[346557118,1735085442650,-500.0,0.00013698,2]
[346557119,1735085442659,-500.0,0.00013698,2]
[346557120,1735085442669,-500.0,0.00013698,2]
[346557121,1735085442678,-500.0,0.00013698,2]
[346557122,1735085442688,-500.0,0.00013698,2]
[346557123,1735085442697,-500.0,0.00013698,2]
[346557124,1735085442707,-500.0,0.00013698,2]
[346557125,1735085442716,-506.1558531,0.00013698,2]
[346557126,1735085442725,-500.0,0.00013698,2]
[346557127,1735085442734,-500.0,0.00013698,2]
[346557128,1735085442745,-500.0,0.00013698,2]
[346557129,1735085442755,-502.06399652,0.00013698,2]
[346557130,1735085442764,-500.0,0.00013698,2]
[346557131,1735085442773,-500.0,0.00013698,2]
[346557132,1735085442920,-500.0,0.00013698,2]
[346557133,1735085442938,-500.0,0.00013698,2]
[346557134,1735085442947,-500.0,0.00013698,2]
[346557135,1735085442957,-500.0,0.00013698,2]
[346557136,1735085442966,-500.0,0.00013698,2]
[346557138,1735085442975,-500.0,0.00013698,2]
[346557139,1735085442984,-500.0,0.00013698,2]
[346557141,1735085442994,-500.0,0.00013698,2]
[346557143,1735085443004,-500.0,0.00013698,2]
[346557145,1735085443013,-500.0,0.00013698,2]
[346557146,1735085443022,-501.26795804,0.00013698,2]
[346557148,1735085443031,-500.0,0.00013698,2]
[346557149,1735085443040,-500.0,0.00013698,2]
[346557150,1735085443049,-501.95454289,0.00013698,2]
[346557151,1735085443060,-500.0,0.00013698,2]
[346557152,1735085443069,-500.0,0.00013698,2]
[346557153,1735085443079,-500.0,0.00013698,2]
[346557154,1735085443088,-500.0,0.00013698,2]
[346557155,1735085443098,-500.0,0.00013698,2]
[346557156,1735085443107,-500.0,0.00013698,2]
[346557157,1735085443117,-500.0,0.00013698,2]
[346557158,1735085443127,-500.0,0.00013698,2]
[346557159,1735085443136,-500.0,0.00013698,2]
[346557160,1735085443145,-152.655214,0.00013698,2]
[346557161,1735085443155,-501.02567978,0.00013698,2]
[346557163,1735085443164,-501.19738323,0.00013698,2]
[346557164,1735085443173,-500.0,0.00013698,2]
[346557165,1735085443183,-743.899649,0.00013698,2]
[346557166,1735085443193,-743.899649,0.00013698,2]
[346557167,1735085443203,-743.899649,0.00013698,2]
[346557168,1735085443212,-500.0,0.00013698,2]
[346557170,1735085443221,-743.899649,0.00013698,2]